Cogmind - Beta 13 @@@ ROGUE MODE // 2024.07.10 @ 23:50:19 Player: celerysam Result: Destroyed by Y-72 Warden with Quantum Rifle Performance ------------- Evolutions (7) 3500 Regions Visited (14) 2800 Robots Destroyed (57) 285 Value Destroyed (1888) 1888 Prototype IDs (12) 240 Alien Tech Used (2) 400 Bonus (4518) 4518 TOTAL SCORE: 13631 Bonus ------- High Alert Combat Kills 18 Entered DSFs 500 Met Warlord at Base 500 MAIN.C Attacked Warlord 500 Used Core Reset Matrix 3000 Cogmind --------- Core Integrity 0/1300 Matter 64/300 Energy 80/100 System Corruption 11% Temperature Cool (9) Movement Flying (45) Location -3/Section 7 Parts ------- > --- POWER (3) -------- Improved Fusion Compressor Improved Fusion Compressor > --- PROPULSION (8) --- Impulse Thruster Array > --- UTILITY (6) ------ Improved Coolant Injector Advanced Salvage Targeting Computer Advanced Salvage Targeting Computer > --- WEAPON (4) ------- (None) > --- INVENTORY (5) ---- Improved Fusion Compressor Subatomic Replicator Neutron Cannon Vortex Catalyst Activator (5) Peak State ------------ > --- POWER ------------ Light Particle Reactor Micro Antimatter Reactor > --- PROPULSION ------- Field Propulsion Drive Field Propulsion Drive Field Propulsion Drive Field Propulsion Drive Field Propulsion Drive Field Propulsion Drive Field Propulsion Array > --- UTILITY ---------- Advanced Cryofiber Web Energy Well Improved Matter Compressor Enhanced Optical Array Improved Targeting Computer Advanced Target Analyzer > --- WEAPON ----------- Long-range Proton Cannon Hardcell Cannon Advanced Datajack > --- INVENTORY -------- Improved Linear Gravjet Field Propulsion Drive Vortex Catalyst Activator [Rating: 122] Favorites ----------- Power Light Nuclear Core Engine Angular Momentum Engine Power Core Light Nuclear Core Reactor Micro Antimatter Reactor Propulsion VTOL Module Treads Advanced Medium Treads Leg Aluminum Leg Wheel Compact Wheel Hover Unit Linear Gravjet Flight Unit VTOL Module Utility Improved Targeting Computer Device Structural Scanner Storage Small Storage Unit Processor Improved Targeting Computer Hackware Makeshift System Shield Protection Improved Propulsion Shielding Weapon Gatling Laser Energy Gun Gatling Laser Energy Cannon Long-range Proton Cannon Ballistic Gun Autogun Ballistic Cannon Flak Cannon Launcher Grenade Launcher Special Weapon Remote Datajack Impact Weapon Mace Slashing Weapon Power Sword Special Melee Weapon Advanced Datajack Build | -11 -10 -9 -8 -7 -7 -6 -5 -5 -5 -4 -4 -3 -3 -3 ------- Run | Yrd Mat Mat Mat Fac DSF Fac Fac Upp War Pro Fac Res Qua Sec Slots Evolved 14 | . . 2 2 2 . 2 2 . . . 2 2 . . Power 2 | . . . 1 . . . . . . . . 1 . . Propulsion 6 | . . 2 . 1 . 1 . . . . 1 1 . . Utility 4 | . . . 1 1 . . 1 . . . 1 . . . Weapon 2 | . . . . . . 1 1 . . . . . . . Parts Attached 190 | 7 4 15 30 3 13 24 24 3 7 15 16 16 9 4 Power 29 | 1 1 4 4 . 3 5 4 . . 2 . 3 . 2 Engine 14 | 1 . 4 4 . 1 3 1 . . . . . . . Core 12 | . 1 . . . 2 2 3 . . 2 . . . 2 Reactor 3 | . . . . . . . . . . . . 3 . . Propulsion 77 | 3 . 8 16 2 8 8 8 . 1 4 9 9 1 . Treads 5 | 1 . 2 . 1 . . . . . . . . 1 . Leg 18 | . . 6 6 1 . 4 . . 1 . . . . . Wheel 9 | 2 . . . . 5 . . . . . . 2 . . Hover 10 | . . . . . . 3 1 . . . 2 4 . . Flight 35 | . . . 10 . 3 1 7 . . 4 7 3 . . Utility 34 | 1 2 . 1 1 1 4 7 3 2 3 3 . 5 1 Device 16 | . 1 . . . 1 2 6 2 2 1 . . 1 . Storage 9 | 1 1 . . . . . 1 1 . . 3 . 1 1 Processor 7 | . . . 1 1 . 1 . . . 1 . . 3 . Hackware 1 | . . . . . . . . . . 1 . . . . Protection 1 | . . . . . . 1 . . . . . . . . Artifact . | . . . . . . . . . . . . . . . Weapon 50 | 2 1 3 9 . 1 7 5 . 4 6 4 4 3 1 Energy Gun 13 | . 1 . 4 . . 2 2 . 1 3 . . . . Energy Cannon 7 | . . . 1 . 1 . . . 1 . 2 1 . 1 Ballistic Gun 10 | 2 . 2 1 . . . 1 . . 2 . . 2 . Ballistic Cannon 4 | . . . . . . 2 . . . . 1 1 . . Launcher 4 | . . . . . . 1 . . 1 . . 2 . . Special Weapon 2 | . . . . . . . 1 . 1 . . . . . Impact Weapon 3 | . . 1 . . . . . . . 1 . . 1 . Slashing Weapon 6 | . . . 3 . . 2 1 . . . . . . . Piercing Weapon . | . . . . . . . . . . . . . . . Special Melee Weapon 1 | . . . . . . . . . . . 1 . . . Unidentified Prototypes 14 | . . . 2 . . . 2 . 4 . . . 5 1 Corrupted Parts 3 | . . . . . 3 . . . . . . . . . System Corruption 16 | . . . . . 16 . . . . . . . . . Parts Lost 99 | . . 3 13 . 16 11 8 . 2 17 . 23 5 1 Power 16 | . . 1 3 . 3 3 1 . . 3 . 2 . . Propulsion 45 | . . 2 9 . 7 1 4 . 1 7 . 13 . 1 Utility 19 | . . . . . 3 3 2 . 1 3 . 4 3 . Weapon 19 | . . . 1 . 3 4 1 . . 4 . 4 2 . Highest Loss Streak 16 | . . 2 7 . 16 4 3 . 2 8 . 14 3 1 To Critical Strikes . | . . . . . . . . . . . . . . . Average Slot Usage (%) 70 | . 97 92 83 96 72 76 62 64 71 62 55 60 29 21 Engine 3 | . 7 5 10 15 4 3 2 . 1 . . . . . Core 2 | . 6 1 . . 2 5 2 5 5 3 . . . . Treads 1 | . . 5 . 3 1 . . . . . . . 3 1 Leg 8 | . . 29 20 . . 10 . . 4 2 . . . . Wheel 4 | . 28 6 . . 12 9 . . . . . . . . Hover 1 | . . . . . . 3 2 5 5 2 2 5 . . Flight 8 | . . . 10 30 11 1 14 17 16 15 15 15 4 4 Device 8 | . 5 11 9 7 4 6 11 16 17 7 5 3 . 4 Storage 4 | . 19 11 9 7 5 . 2 . . . 7 8 . . Processor 10 | . . . 7 15 15 14 11 11 11 16 15 12 13 9 Energy Gun 3 | . 6 4 5 . . 6 2 . 1 2 . . . . Ballistic Gun 3 | . 21 7 2 . . . 3 . . 1 . . 6 . Impact Weapon 2 | . . 9 4 . . . . . . 2 . . . . Slashing Weapon 1 | . . . 4 15 11 3 3 . . . . . . . Naked Turns . | . . . . . . . . . . . . . . . Heaviest Build 52 | 12 16 18 21 16 18 37 23 11 15 15 20 52 12 10 Greatest Support 68 | 32 32 43 40 16 68 68 20 11 15 16 50 57 16 16 Greatest Overweight (x) 6 | 1 . 1 1 . 3 1 6 . 1 2 . 2 . . Average Overweight (x) . | . . . . . . . . . . . . . . . Largest Inventory Capacity 20 | 8 8 8 8 8 8 5 5 5 5 5 5 5 20 15 Average Capacity 6 | 6 8 8 8 8 7 5 5 5 5 5 5 5 5 5 Most Carried 8 | 6 8 8 8 8 8 5 5 5 5 5 5 5 4 5 Average Carried 5 | 4 7 7 7 7 6 4 4 4 4 4 4 4 2 3 Final Capacity 8 | 8 8 8 8 8 5 5 5 5 5 5 5 5 5 5 Final Carried 8 | 6 8 8 8 8 5 5 5 5 5 5 5 3 3 5 Class Distribution -------------------- 69% | Mutant 14% | Scavenger-Sprinter 10% | Scavenger-Mutant 4% | Sprinter Dominant Class ---------------- Mutant | -10/Materials Mutant | -9/Materials Mutant | -8/Materials Mutant | -7/Factory Mutant | -7/DSF Mutant | -6/Factory Scavenger-Sprinter | -5/Factory Scavenger-Sprinter | -5/Upper Caves Scavenger-Mutant | -5/Warlord Mutant | -4/Proximity Caves Sprinter | -4/Factory Mutant | -3/Research Mutant | -3/Quarantine Mutant | -3/Section 7 Resources | -11 -10 -9 -8 -7 -7 -6 -5 -5 -5 -4 -4 -3 -3 -3 ----------- Run | Yrd Mat Mat Mat Fac DSF Fac Fac Upp War Pro Fac Res Qua Sec Matter Collected 1961 | 202 20 229 353 . 40 181 312 . 76 434 . 12 . 102 Remotely . | . . . . . . . . . . . . . . . Salvage Created 1967 | . 108 393 493 . 13 170 238 . . 319 . 233 . . Parts 92 | . 9 26 21 . 2 7 11 . . 9 . 7 . . Haulers Intercepted . | . . . . . . . . . . . . . . . Recyclers Shooed . | . . . . . . . . . . . . . . . Parts Field Recycled . | . . . . . . . . . . . . . . . Retrieved Matter . | . . . . . . . . . . . . . . . Parts Self-Destructed 4 | . . . . . . . . . . 4 . . . . Prevented . | . . . . . . . . . . . . . . . Kills | -11 -10 -9 -8 -7 -7 -6 -5 -5 -5 -4 -4 -3 -3 -3 ------- Run | Yrd Mat Mat Mat Fac DSF Fac Fac Upp War Pro Fac Res Qua Sec Combat Hostiles Destroyed 54 | . 4 11 15 . 1 5 7 . . 6 . 5 . . Melee 13 | . . 4 7 . 1 1 . . . . . . . . Guns 31 | . 4 6 6 . . 2 7 . . 6 . . . . Cannons 2 | . . . . . . 2 . . . . . . . . AOE 5 | . . . . . . . . . . . . 5 . . Classes Destroyed 7 | . 2 2 . . 1 1 . . . . . 1 . . Worker 3 | . . . . . . 1 . . . . . 2 . . Swarmer 22 | . 2 2 7 . . . 5 . . 6 . . . . Cutter 3 | . . . . . 1 2 . . . . . . . . Grunt 22 | . 2 7 5 . . 3 2 . . . . 3 . . Duelist 1 | . . 1 . . . . . . . . . . . . Sentry 5 | . . 1 3 . . . . . . . . 1 . . Hunter 1 | . . . . . . . . . . . . 1 . . Best Kill Streak 6 | . 4 4 4 . 1 3 5 . . 5 . 6 . . Combat Bots Only 5 | . 4 4 4 . 1 3 5 . . 5 . 5 . . Max Kills in Single Turn 6 | . 2 1 1 . 1 1 2 . . 2 . 6 . . Gunslinging 1 | . . . . . . . 1 . . 1 . . . . Exploded 5 | . . . . . . . . . . . . 5 . . Melee 1 | . . 1 1 . 1 1 . . . . . . . . Uniques/NPCs Destroyed . | . . . . . . . . . . . . . . . Combat | -11 -10 -9 -8 -7 -7 -6 -5 -5 -5 -4 -4 -3 -3 -3 -------- Run | Yrd Mat Mat Mat Fac DSF Fac Fac Upp War Pro Fac Res Qua Sec Hostile Shots Fired 1183 | . 42 86 137 . 168 127 85 1 28 141 4 276 76 12 Missed 483 | . 19 22 49 . 61 46 31 . 15 61 2 131 38 8 Damage Taken 12232 | . 262 713 1245 . 1945 1720 963 20 189 1235 50 2535 1257 98 Core 3422 | . 49 124 370 . 577 176 268 . 64 498 . 903 366 27 Absorbed by Shields . | . . . . . . . . . . . . . . . Redirected to Shielding 63 | . . . . . . 63 . . . . . . . . Regen/Repaired (Parts) 18 | . . . . . . . . . 18 . . . . . Core Remaining (%) 61 | 100 80 69 32 . 17 79 . . . 17 100 . . . Volleys Fired 150 | . 9 32 30 . . 17 20 . . 21 . 2 19 . Largest 2 | . 2 1 1 . . 2 2 . . 2 . 2 2 . Hottest 146 | . 40 65 63 . . 133 108 . . 73 . 146 71 . Shots Fired 196 | . 18 32 30 . . 19 24 . . 31 . 4 38 . Gun 181 | . 18 32 30 . . 8 24 . . 31 . . 38 . Cannon 13 | . . . . . . 11 . . . . . 2 . . Launcher 2 | . . . . . . . . . . . . 2 . . Special . | . . . . . . . . . . . . . . . Kinetic 124 | . 18 24 12 . . 11 6 . . 15 . . 38 . Thermal 68 | . . 8 18 . . 8 18 . . 16 . . . . Explosive 1 | . . . . . . . . . . . . 1 . . Electromagnetic 2 | . . . . . . . . . . . . 2 . . Entropic 1 | . . . . . . . . . . . . 1 . . Robot Hit Streak 36 | . 8 7 12 . . 15 36 . . 8 . 1 . . Robot Miss Streak 9 | . 2 9 2 . . 4 2 . . 2 . 3 1 . Penetration Max . | . . . . . . . . . . . . . . . Secondary Targets 6 | . 2 . . . . . 3 . . 1 . . . . Max Gunslinging Chain 1 | . 1 . . . . . 1 . . 1 . . . . Shots Hit Robots 158 | . 12 29 47 . 2 24 21 . . 22 . 1 . . Core Hits 107 | . 8 14 17 . 1 26 16 . . 12 . 13 . . Critical Kills 2 | . . 2 . . . . . . . . . . . . Critical Parts Destroyed 2 | . . . 1 . . . . . . 1 . . . . Critical Strikes 11 | . . 2 4 . . . . . . 5 . . . . Burn 7 | . . . 3 . . . . . . 4 . . . . Destroy 1 | . . . . . . . . . . 1 . . . . Smash 3 | . . 2 1 . . . . . . . . . . . Melee Attacks 47 | . . 12 25 . 2 8 . . . . . . . . Impact 19 | . . 12 7 . . . . . . . . . . . Slashing 28 | . . . 18 . 2 8 . . . . . . . . Piercing . | . . . . . . . . . . . . . . . Sneak Attacks 2 | . . 1 . . . 1 . . . . . . . . Combat Hostiles . | . . . . . . . . . . . . . . . Follow-up Attacks . | . . . . . . . . . . . . . . . Damage Inflicted 5792 | . 171 675 1092 . 60 659 559 . . 340 . 2236 . . Guns 1980 | . 162 307 436 . . 176 559 . . 340 . . . . Cannons 242 | . . . . . . 242 . . . . . . . . Explosions 2236 | . . . . . . . . . . . . 2236 . . Melee 1311 | . . 368 656 . 60 227 . . . . . . . . Ramming 23 | . 9 . . . . 14 . . . . . . . . Kinetic 1083 | . 162 277 148 . . 242 84 . . 170 . . . . Thermal 1139 | . . 30 288 . . 176 475 . . 170 . . . . Explosive 359 | . . . . . . . . . . . . 359 . . Electromagnetic . | . . . . . . . . . . . . . . . Impact 591 | . . 368 223 . . . . . . . . . . . Slashing 720 | . . . 433 . 60 227 . . . . . . . . Piercing . | . . . . . . . . . . . . . . . Entropic 1877 | . . . . . . . . . . . . 1877 . . Highest Corruption 16 | . 2 . . . 16 2 1 1 . . . . 11 11 Average Corruption 6 | . 2 . . . 15 2 1 1 . . . . 8 11 Corruption Purged 2 | . . . . . . . 1 1 . . . . . . Corruption Blocked . | . . . . . . . . . . . . . . . Effects 24 | . . . . . 5 2 1 . . . . . 10 6 Message Errors 4 | . . . . . . 1 1 . . . . . 2 . Matter Fused 5 | . . . . . 2 . . . . . . . 3 . Heat Flow Errors 2 | . . . . . . . . . . . . . . 2 Energy Discharges 1 | . . . . . . . . . . . . . . 1 Data Loss (minor) 2 | . . . . . 1 1 . . . . . . . . Misfires 1 | . . . . . . . . . . . . . 1 . Alerts 2 | . . . . . 1 . . . . . . . 1 . Misdirections 7 | . . . . . 1 . . . . . . . 3 3 Overload Shots . | . . . . . . . . . . . . . . . Overflow Damage 118 | . . 27 56 . . . . . . . . 35 . . Projectiles . | . . . . . . . . . . . . . . . Explosions 35 | . . . . . . . . . . . . 35 . . Melee 83 | . . 27 56 . . . . . . . . . . . Knockbacks 6 | . . 1 2 . . 3 . . . . . . . . Impact 2 | . . 1 1 . . . . . . . . . . . Kinetic 2 | . . . . . . 2 . . . . . . . . Secondary 2 | . . . 1 . . 1 . . . . . . . . Self-Inflicted Damage 11 | . 4 . . . . 7 . . . . . . . . Shots . | . . . . . . . . . . . . . . . Rammed 2 | . 1 . . . . 1 . . . . . . . . Targets Rammed 2 | . 1 . . . . 1 . . . . . . . . Kicked . | . . . . . . . . . . . . . . . Crushed . | . . . . . . . . . . . . . . . Highest Temperature 368 | . 8 32 169 . . 78 16 . . 8 . 368 . 153 Average Temperature 102 | . 3 13 50 . . 29 9 . . 6 . 199 . 83 Received Heat Transfer 2026 | . 114 252 441 . 129 402 207 9 . . 9 445 9 9 Effects 5 | . . . . . . . . . . . . 5 . . Interference 4 | . . . . . . . . . . . . 4 . . Short Circuit 1 | . . . . . . . . . . . . 1 . . Siege Activations . | . . . . . . . . . . . . . . . Robots Corrupted . | . . . . . . . . . . . . . . . Combat Hostiles . | . . . . . . . . . . . . . . . Parts Fried . | . . . . . . . . . . . . . . . Impact Corruptions 4 | . . 2 2 . . . . . . . . . . . Robots Melted 1 | . . . 1 . . . . . . . . . . . Combat Hostiles 1 | . . . 1 . . . . . . . . . . . Parts Melted 6 | . . . 1 . . . 4 . . 1 . . . . Heat Transferred 3040 | . . 74 851 . . 400 1049 . . 666 . . . . Parts Sabotaged . | . . . . . . . . . . . . . . . Parts Stolen . | . . . . . . . . . . . . . . . Parts Stripped . | . . . . . . . . . . . . . . . Power Chain Reactions . | . . . . . . . . . . . . . . . Alert | -11 -10 -9 -8 -7 -7 -6 -5 -5 -5 -4 -4 -3 -3 -3 ------- Run | Yrd Mat Mat Mat Fac DSF Fac Fac Upp War Pro Fac Res Qua Sec Peak Influence 565 | . 106 170 362 107 74 305 565 . . . 73 358 209 135 Initial 144 | . . 44 71 107 74 . 88 . . . 28 38 144 4 Average 163 | . 64 111 205 107 20 178 387 . . . 44 124 159 46 Maximum Alert Level 2 | . . . 1 . . 1 2 . . . . 1 1 . Low Security (%) 67 | 100 100 100 42 100 100 43 7 . . . 100 68 99 100 Level 1 25 | . . . 57 . . 56 35 . . . . 31 1 . Level 2 6 | . . . . . . . 57 . . . . . . . Level 3 . | . . . . . . . . . . . . . . . Level 4 . | . . . . . . . . . . . . . . . Level 5 . | . . . . . . . . . . . . . . . High Security . | . . . . . . . . . . . . . . . Max Security . | . . . . . . . . . . . . . . . Squads Dispatched 20 | . 1 1 1 . 1 6 3 . . . . 3 2 2 Investigation 4 | . . . . . . 1 2 . . . . 1 . . Extermination 2 | . . . . . . 1 . . . . . . 1 . Reinforcement 13 | . 1 1 1 . 1 4 . . . . . 2 1 2 Assault 1 | . . . . . . . 1 . . . . . . . Garrison . | . . . . . . . . . . . . . . . Intercept . | . . . . . . . . . . . . . . . Searches Triggered . | . . . . . . . . . . . . . . . Construction Impeded . | . . . . . . . . . . . . . . . Haulers Reinforced . | . . . . . . . . . . . . . . . Active Scanning Responses . | . . . . . . . . . . . . . . . Cargo Convoy Interrupts . | . . . . . . . . . . . . . . . Stealth | -11 -10 -9 -8 -7 -7 -6 -5 -5 -5 -4 -4 -3 -3 -3 --------- Run | Yrd Mat Mat Mat Fac DSF Fac Fac Upp War Pro Fac Res Qua Sec Distress Signals 6 | . . 2 . . . 1 2 . . . . 1 . . Communications Jammed . | . . . . . . . . . . . . . . . Distress Signals . | . . . . . . . . . . . . . . . Times Spotted 194 | . 9 16 27 . 9 22 25 2 13 16 3 32 7 13 Peak Tracking Total 23 | . 5 7 6 . 7 6 9 3 11 9 2 23 5 9 Tactical Retreats 19 | . . . 2 . . 5 3 1 . 1 . 2 2 3 Traps | -11 -10 -9 -8 -7 -7 -6 -5 -5 -5 -4 -4 -3 -3 -3 ------- Run | Yrd Mat Mat Mat Fac DSF Fac Fac Upp War Pro Fac Res Qua Sec Traps Triggered 6 | . 1 . . . 1 . 3 . . . . 1 . . Indirectly . | . . . . . . . . . . . . . . . Trap Hack Attempts . | . . . . . . . . . . . . . . . Triggered . | . . . . . . . . . . . . . . . Disarmed . | . . . . . . . . . . . . . . . Reprogrammed . | . . . . . . . . . . . . . . . Reused . | . . . . . . . . . . . . . . . Traps Extracted . | . . . . . . . . . . . . . . . Installed . | . . . . . . . . . . . . . . . Triggered 12 | . . . . . . . . . 12 . . . . . Machines | -11 -10 -9 -8 -7 -7 -6 -5 -5 -5 -4 -4 -3 -3 -3 ---------- Run | Yrd Mat Mat Mat Fac DSF Fac Fac Upp War Pro Fac Res Qua Sec Machines Disabled 4 | . . . . . . . 1 . . . . 1 2 . Max in Single Turn 1 | . . . . . . . 1 . . . . 1 1 . Garrison Access 2 | . . . . . . 1 1 . . . . . . . Machines Repaired . | . . . . . . . . . . . . . . . Machines Dismantled . | . . . . . . . . . . . . . . . Machines Sabotaged . | . . . . . . . . . . . . . . . Overloaded Fab Kills . | . . . . . . . . . . . . . . . Hacking | -11 -10 -9 -8 -7 -7 -6 -5 -5 -5 -4 -4 -3 -3 -3 --------- Run | Yrd Mat Mat Mat Fac DSF Fac Fac Upp War Pro Fac Res Qua Sec Machines Accessed 21 | . 1 . . 1 . 1 5 1 6 . . 1 3 2 Terminals 8 | . . . . 1 . . 1 . . . . 1 3 2 Fabricators 2 | . . . . . . . 2 . . . . . . . Repair Stations 1 | . . . . . . . 1 . . . . . . . Recycling Units 1 | . 1 . . . . . . . . . . . . . Scanalyzers . | . . . . . . . . . . . . . . . Garrison Access 2 | . . . . . . 1 1 . . . . . . . Total Hacks 42 | . 2 . . 3 . 3 7 1 16 . . 2 5 3 Successful 31 | . 1 . . 1 . 1 5 1 16 . . 2 4 . Failed 11 | . 1 . . 2 . 2 2 . . . . . 1 3 Catastrophic . | . . . . . . . . . . . . . . . Database Lockouts . | . . . . . . . . . . . . . . . Manual 6 | . . . . . . 3 2 . . . . . . 1 Terminals 14 | . . . . 3 . . 1 . . . . 2 5 3 Fabricators 3 | . . . . . . . 3 . . . . . . . Repair Stations 2 | . . . . . . . 2 . . . . . . . Recycling Units 2 | . 2 . . . . . . . . . . . . . Scanalyzers . | . . . . . . . . . . . . . . . Garrison Access 4 | . . . . . . 3 1 . . . . . . . Terminal Hacks 25 | . . . . 1 . . 1 1 16 . . 2 4 . Record 21 | . . . . . . . . . 15 . . 2 4 . Open Door 2 | . . . . . . . . 1 1 . . . . . Open DSF 2 | . . . . 1 . . 1 . . . . . . . Fabricator Hacks 2 | . . . . . . . 2 . . . . . . . Network Status 2 | . . . . . . . 2 . . . . . . . Repair Station Hacks . | . . . . . . . . . . . . . . . Recycling Unit Hacks 1 | . 1 . . . . . . . . . . . . . Report Inventory 1 | . 1 . . . . . . . . . . . . . Scanalyzer . | . . . . . . . . . . . . . . . Garrison Access Hacks . | . . . . . . . . . . . . . . . Unauthorized Hacks 3 | . . . . . . 1 2 . . . . . . . Terminals . | . . . . . . . . . . . . . . . Fabricators 1 | . . . . . . . 1 . . . . . . . Download 1 | . . . . . . . 1 . . . . . . . Repair Stations . | . . . . . . . . . . . . . . . Recycling Units . | . . . . . . . . . . . . . . . Scanalyzers . | . . . . . . . . . . . . . . . Garrison Access 2 | . . . . . . 1 1 . . . . . . . Jam 2 | . . . . . . 1 1 . . . . . . . Data Cores Recovered . | . . . . . . . . . . . . . . . Used . | . . . . . . . . . . . . . . . Hacking Detections 10 | . . . . 1 . 1 4 . . . . 1 1 2 Full Trace Events . | . . . . . . . . . . . . . . . Feedback Events . | . . . . . . . . . . . . . . . Feedback Blocked . | . . . . . . . . . . . . . . . Robot Schematics Acquired . | . . . . . . . . . . . . . . . Robots Built . | . . . . . . . . . . . . . . . Authchips . | . . . . . . . . . . . . . . . Time . | . . . . . . . . . . . . . . . Total Robot Build Rating . | . . . . . . . . . . . . . . . Part Schematics Acquired 1 | . . . . . . . 1 . . . . . . . Parts Built . | . . . . . . . . . . . . . . . Authchips . | . . . . . . . . . . . . . . . Time . | . . . . . . . . . . . . . . . Total Part Build Rating . | . . . . . . . . . . . . . . . Parts Repaired . | . . . . . . . . . . . . . . . Time . | . . . . . . . . . . . . . . . Parts Recycled . | . . . . . . . . . . . . . . . Recycled Matter . | . . . . . . . . . . . . . . . Retrieved Matter . | . . . . . . . . . . . . . . . Retrieved Components . | . . . . . . . . . . . . . . . Parts Scanalyzed . | . . . . . . . . . . . . . . . Part Schematics Acquired . | . . . . . . . . . . . . . . . Parts Damaged . | . . . . . . . . . . . . . . . Bothacking | -11 -10 -9 -8 -7 -7 -6 -5 -5 -5 -4 -4 -3 -3 -3 ------------ Run | Yrd Mat Mat Mat Fac DSF Fac Fac Upp War Pro Fac Res Qua Sec Used RIF Installer . | . . . . . . . . . . . . . . . Robots Hacked . | . . . . . . . . . . . . . . . Non-combat . | . . . . . . . . . . . . . . . Combat . | . . . . . . . . . . . . . . . Robot Hacks Applied . | . . . . . . . . . . . . . . . Relay Couplers Released . | . . . . . . . . . . . . . . . Fabnet Peak Effective % . | . . . . . . . . . . . . . . . Robots Rewired . | . . . . . . . . . . . . . . . Allies Hacked . | . . . . . . . . . . . . . . . Hacks Repelled . | . . . . . . . . . . . . . . . Allies | -11 -10 -9 -8 -7 -7 -6 -5 -5 -5 -4 -4 -3 -3 -3 -------- Run | Yrd Mat Mat Mat Fac DSF Fac Fac Upp War Pro Fac Res Qua Sec Total Allies . | . . . . . . . . . . . . . . . Largest Group . | . . . . . . . . . . . . . . . Highest-Rated Group . | . . . . . . . . . . . . . . . Highest-Rated Ally . | . . . . . . . . . . . . . . . Total Orders . | . . . . . . . . . . . . . . . Ally Attacks . | . . . . . . . . . . . . . . . Total Damage . | . . . . . . . . . . . . . . . Kills . | . . . . . . . . . . . . . . . Allies Corrupted . | . . . . . . . . . . . . . . . Allies Melted 1 | . . . . . . . . . 1 . . . . . Intel | -11 -10 -9 -8 -7 -7 -6 -5 -5 -5 -4 -4 -3 -3 -3 ------- Run | Yrd Mat Mat Mat Fac DSF Fac Fac Upp War Pro Fac Res Qua Sec Robot Analysis Total . | . . . . . . . . . . . . . . . Derelict Logs Recovered 1 | . . . . . . . . . . 1 . . . . Drone Launches . | . . . . . . . . . . . . . . . Drone Recoveries . | . . . . . . . . . . . . . . . Exploration | -11 -10 -9 -8 -7 -7 -6 -5 -5 -5 -4 -4 -3 -3 -3 ------------- Run | Yrd Mat Mat Mat Fac DSF Fac Fac Upp War Pro Fac Res Qua Sec Turns Passed 4300 | 56 243 584 468 27 97 711 382 109 465 346 139 170 400 103 Spaces Moved 5531 | 45 174 388 322 53 77 578 674 322 944 523 354 370 518 189 Core 35 | 14 . . . . . . 2 . . 14 . 5 . . Treads . | . . . . . . . . . . . . . . . Legs 745 | . . 308 156 . . 121 . . 7 153 . . . . Wheels 584 | 31 174 80 . . 57 231 . . . . . 11 . . Hover 472 | . . . . . . 226 149 . . . 1 96 . . Flight 3695 | . . . 166 53 20 . 523 322 937 356 353 258 518 189 Fastest Speed 24 | 50 100 100 29 29 35 66 24 29 29 26 25 26 45 45 Average Speed 58 | 85 100 115 76 40 85 91 38 29 44 49 30 35 61 49 Slowest Speed 355 | 100 100 120 190 49 160 130 355 29 105 205 80 150 65 65 Overloaded Moves . | . . . . . . . . . . . . . . . Propulsion Burnouts . | . . . . . . . . . . . . . . . Robots Hopped 24 | . . . 1 . . . 2 . 8 . 3 3 6 1 Cave-ins Triggered 2 | . . . . . . . . . . . . . 2 . Teleports 1 | . . . . . . . . . . . . . 1 . Exploration Rate (%) 35 | 3 36 44 38 2 66 25 24 36 93 69 14 16 56 16 Regions Visited 14 Branch Regions 5 Pre-discovered Areas . | . . . . . . . . . . . . . . . Known Exits Taken 1 | . . . . 1 . . . . . . . . . . Unknown Exits Taken 12 | 1 1 1 1 . . 1 1 1 1 1 1 1 1 . Scrap Searched 5 | . . . . . . . . 1 . 4 . . . . Spaces Dug 13 | . . . . . . . . . . . . . 13 . Terrain Destroyed 55 | . . . . . . 1 1 . . . . 39 14 . Melee . | . . . . . . . . . . . . . . . Projectile 16 | . . . . . . 1 1 . . . . . 14 . AOE 39 | . . . . . . . . . . . . 39 . . Terrain Rammed . | . . . . . . . . . . . . . . . Walls Destroyed . | . . . . . . . . . . . . . . . Machines Disabled . | . . . . . . . . . . . . . . . Actions | -11 -10 -9 -8 -7 -7 -6 -5 -5 -5 -4 -4 -3 -3 -3 --------- Run | Yrd Mat Mat Mat Fac DSF Fac Fac Upp War Pro Fac Res Qua Sec Total 6313 | 61 226 476 473 58 103 727 764 336 981 576 381 399 554 198 Wait 217 | . 33 13 35 . . 71 15 7 26 12 . 5 . . Move 5474 | 44 173 387 319 52 76 577 669 321 931 522 347 364 505 187 Hop 18 | . . . 1 . . . 2 . 4 . 3 2 5 1 Pick Up 102 | 10 3 7 19 2 9 16 5 2 . 2 6 6 11 4 Fast Attach 75 | 2 2 3 7 1 6 9 11 1 6 12 8 6 . 1 Attach 87 | 4 1 4 14 2 7 12 10 . . 3 6 10 11 3 Detach 18 | . . . 3 . . . 6 . 2 2 2 2 . 1 Swap 30 | 1 1 8 9 . . 3 3 2 1 . 2 . . . Drop 74 | . 3 10 11 1 3 13 5 3 11 2 7 2 2 1 Fire 150 | . 9 32 30 . . 17 20 . . 21 . 2 19 . Melee 47 | . . 12 25 . 2 8 . . . . . . . . Ram 2 | . 1 . . . . 1 . . . . . . . . Kick . | . . . . . . . . . . . . . . . Crush . | . . . . . . . . . . . . . . . Escape Stasis 19 | . . . . . . . 18 . . . . . 1 . Rewire . | . . . . . . . . . . . . . . . Trap . | . . . . . . . . . . . . . . . Miscellaneous . | . . . . . . . . . . . . . . . Route ------- -11/Scrapyard -10/Materials -9/Materials -8/Materials -7/Factory -7/DSF -6/Factory -5/Factory -5/Upper Caves -5/Warlord -4/Proximity Caves -4/Factory -3/Research -3/Quarantine -3/Section 7 History --------- Turn | Location | Event 25 | -11/Scrapyard | Discovered new exit (range 16) 57 | -11/Scrapyard | Entered Materials 298 | -10/Materials | Discovered new exit (range 3) 300 | -10/Materials | Entered another Materials area 300 | -9/Materials | Evolved 2 slots: Propulsion x2 303 | -9/Materials | Build established: Mutant 784 | -9/Materials | Discovered new exit (range 16) 884 | -9/Materials | Entered another Materials area 884 | -8/Materials | Evolved 2 slots: Power x1, Utility x1 1111 | -8/Materials | Core integrity fell below 50% 1130 | -8/Materials | Lost 7 parts (2p4n1w) 1251 | -8/Materials | Lost 3 parts (3n) 1349 | -8/Materials | Discovered new exit (range 8) 1352 | -8/Materials | Entered Factory 1352 | -7/Factory | Evolved 2 slots: Propulsion x1, Utility x1 1379 | -7/Factory | Identified exit to DSF 1379 | -7/Factory | Entered DSF 1403 | -7/DSF | Additional patrols routed to DSF 1407 | -7/DSF | System corruption reached 10% 1423 | -7/DSF | Core integrity fell below 50% 1459 | -7/DSF | Discovered new exit (range 12) 1471 | -7/DSF | Core integrity fell below 20% 1476 | -7/DSF | Entered Factory 1476 | -6/Factory | Evolved 2 slots: Propulsion x1, Weapon x1 1506 | -6/Factory | Lost 16 parts (3p7n3u3w) 1764 | -6/Factory | Lost 3 parts (1p1u1w) 2181 | -6/Factory | Discovered new exit (range 7) 2187 | -6/Factory | Entered another Factory area 2187 | -5/Factory | Evolved 2 slots: Utility x1, Weapon x1 2211 | -5/Factory | Lost 4 parts (1p1n1u1w) 2379 | -5/Factory | Lost 3 parts (1p1n1u) 2487 | -5/Factory | First assault squad dispatched 2563 | -5/Factory | Discovered new exit (range 14) 2569 | -5/Factory | Entered Upper Caves 2593 | -5/Upper Caves | Lost 3 parts (2n1w) 2599 | -5/Upper Caves | A Derelict revealed a hidden shortcut to "reach the base" 2641 | -5/Upper Caves | Build established: Scavenger-Sprinter 2678 | -5/Upper Caves | Entered Warlord 2752 | -5/Warlord | Met Warlord 2774 | -5/Warlord | Warlord's base attacked by MAIN.C 2787 | -5/Warlord | Found Prototype Special Weapon 2787 | -5/Warlord | Identified RU-N14's Throwing Claymores v3 2991 | -5/Warlord | Found Prototype Energy Gun 2991 | -5/Warlord | Identified Vortex Rail 2995 | -5/Warlord | Found Prototype Energy Cannon 2995 | -5/Warlord | Identified Vortex Cannon 2998 | -5/Warlord | Found Prototype Launcher 2998 | -5/Warlord | Identified Vortex Catalyst Activator 3040 | -5/Warlord | Build established: Scavenger-Mutant 3098 | -5/Warlord | Spotted B-86 Titan 3099 | -5/Warlord | Spotted Striker 3100 | -5/Warlord | Spotted B-75 Beast 3122 | -5/Warlord | Warlord forces counterattacked 3132 | -5/Warlord | Discovered new exit (range 14) 3143 | -5/Warlord | Entered Proximity Caves 3168 | -4/Proximity Caves | Lost 6 allies 3319 | -4/Proximity Caves | Core integrity fell below 50% 3346 | -4/Proximity Caves | Lost 8 parts (1p4n2u1w) 3381 | -4/Proximity Caves | Learned Research garrison access intel 3411 | -4/Proximity Caves | Spotted B-86 Titan 3425 | -4/Proximity Caves | Attracted the attention of an 0b10 checkpoint 3439 | -4/Proximity Caves | Lost 3 parts (1p2w) 3484 | -4/Proximity Caves | Core integrity fell below 20% 3487 | -4/Proximity Caves | Discovered new exit (range 7) 3489 | -4/Proximity Caves | Entered Factory 3489 | -4/Factory | Evolved 2 slots: Propulsion x1, Utility x1 3519 | -4/Factory | Lost 6 parts (1p3n1u1w) 3606 | -4/Factory | Discovered new exit (range 13) 3628 | -4/Factory | Entered Research 3628 | -3/Research | Evolved 2 slots: Power x1, Propulsion x1 3629 | -3/Research | Loaded intel: 3 garrison access locations 3745 | -3/Research | Lost 9 parts (1p7n1w) 3765 | -3/Research | Found Fusion Bomb Launcher 3787 | -3/Research | Core integrity fell below 50% 3791 | -3/Research | Discovered new exit (range 16) 3791 | -3/Research | Spotted B-90 Cyclops 3798 | -3/Research | Entered Quarantine 3806 | -3/Quarantine | Found Alien Artifact 3807 | -3/Quarantine | Identified Hpw. Transdimensional Reconstructor 3807 | -3/Quarantine | Warped through subspace 3818 | -3/Quarantine | Lost 14 parts (1p6n4u3w) 3836 | -3/Quarantine | Found Alien Artifact 3837 | -3/Quarantine | Identified Core Reset Matrix 3837 | -3/Quarantine | Used Core Reset Matrix 3841 | -3/Quarantine | Detected hypermatrix surge 3841 | -3/Quarantine | Sensed 9 artifacts in vicinity 3904 | -3/Quarantine | Found Subatomic Replicator 3979 | -3/Quarantine | Build established: Mutant 3987 | -3/Quarantine | Crushed by falling debris 4007 | -3/Quarantine | Crushed by falling debris 4007 | -3/Quarantine | Core integrity fell below 20% 4038 | -3/Quarantine | Lost 3 parts (3u) 4136 | -3/Quarantine | System corruption reached 10% 4148 | -3/Quarantine | Spotted Fortress 4194 | -3/Quarantine | Discovered new exit (range 6) 4198 | -3/Quarantine | Entered Section 7 4199 | -3/Section 7 | Sensed 18 artifacts in vicinity 4242 | -3/Section 7 | Spotted S7 Guard 4301 | -3/Section 7 | Destroyed by Y-72 Warden with Quantum Rifle Last Messages --------------- 04236_ System corrupted: Heat flow error (+177). 04237_ O-32 Director: "IFF HANDSHAKE FAILED. SECURING TERMINAL." 04247_ ALERT: Hostiles spotted, dispatching reinforcements to Terminal 7010. 04248_ Connecting with Terminal... 04260_ Acquired 102 matter. 04270_ Acquired Prototype Energy Cannon. 04271_ O-24 Administrator uses terminal to summon reinforcements. 04271_ ALERT: Hostiles spotted, dispatching reinforcements to Terminal 7008. 04271_ O-24 Administrator locks terminal. 04271_ Identified Neutron Cannon. 04271_ C-55 Analyst calibrates the Deconstruction Unit. 04277_ Acquired Unknown Storage. 04278_ Identified Lrg. Storage Unit. 04279_ Dropped Lrg. Storage Unit. 04286_ System corrupted: Heat flow error (+194). 04296_ Acquired Unknown Power Core. 04297_ Identified Imp. Fusion Compressor. 04299_ Acquired Imp. Fusion Compressor. Map ----- +----------------------------------------------------+ | # # """ #?????????????????? | | " # ###+###### # """ #?????????????????? | | T" # # ## # """ "" #?????????????????? | | "" # # """ ## # """ """#?????????????????? | | # # """ ## # """ S"#?????????????????? | | #### # """ + # """ """#?????????????????? | | ???# # ""## # """#?????????????????? | | ???# # ! ""## + ! #?????????????????? | | ???# # S"## ##########?????????????????? | | ???# # """## #??????????????????????????? | | ???# # ! """## #??????????????????????????? | | ??? # """## ######" "##????????????????? | | ??? # ????# ^ ???????????????? | | ???? #####????# ???????????????? | | ?????????????????# """ """ """????????????????? | | ???##+##########?# " " " " "??????????????????? | | ???? ?# """ """ """????????????????? | | ????? [ # ???????????????? | | ?????? # ???????????????? | | ??????????"" """ + ???????????????? | | ?????????? " """ # """"T""""????????????????? | | ??????????"" """ # """"""????????????????????? | | ?????????? ?# #############??????????????? | | ??????????######?# # ???????????????! | | ??????????????#### # ** """""????????????????? | | ??????? + @ ""S""" ??????????????? | | ?????? # """ ??????????????? | | ??????? # Y #?????????????? | | ??????? ####### ######?????????????? | | ????????###########+###???????#??????????????????? | | ?????????????????????????????????????????????????? | | ?????????????????????????????????????????????????? | | ?????????????????????????????????????????????????? | | ?????????????????????????????????????????????????? | | ?????????????????????????????????????????????????? | | ?????????????????????????????????????????????????? | | ?????????????????????????????????????????????????? | | ?????????????????????????????????????????????????? | | | | | | | | | | | | | | | | | | | | | | | | | +----------------------------------------------------+ Best States ------------- Heat Dissipation 61 Coolant Potential 80 Energy Generation 37 Energy Capacity 580 Matter Stores 395 Matter Capacity 600 Sight Range 22 Terrain Scan Density 10 ECM Strength 2 Cloak Strength 3 Power Amplification 20 Base Temperature (-) 200 Propulsion Shielding 66 Phase Shifting 5 Evasion (%) 65 Targeting Accuracy 14 Target Analysis 8 Recoil Reduction 6 Salvage Targeting 9 Defensive Hacking 11 Authchip Count 1 Item Schematics ----------------- None Robot Schematics ------------------ None Fabricated ------------ Nothing Alien Tech Used ----------------- High-powered Transdimensional Reconstructor Core Reset Matrix Achievements -------------- A Powerful Ally? Alien Roots Nope Challenges ------------ None Game ------ Seed WeaponSignalStick Manual? 0 Play Time 01:42:36 Cumulative 93.3 hours Start 2024.07.10 @ 21:54:46 End 2024.07.10 @ 23:50:19 Sessions 1 Manual Loads 0 Difficulty Rogue Special Mode None Game No. 134 Rogue 134 Adventurer 0 Explorer 0 Win Type - Total 0 Types 0/0/0/0/0/0/0/0/0 Lore% 42 Gallery% 55 Achievement% 35 Wizard Run 0 Options --------- Layout 0 ASCII 0 Keyboard 0 Movement Mouse Keybinds 0 Fullscreen 1 Font 24/Smallcaps Map View 76x50 Zoom Use 0% Tactical HUD 1 Map Filters NONE Filters NONE Steam 1 RUN: 3fa9bc61-e188-4fe9-9ffd-95328b088076